lending/lending_fUSD_20251022
["ID","MTS","AMOUNT","RATE_DAILY","PERIOD"]
[392076920,1761137450159,-598.97,0.00044109,120]
[392076921,1761137450168,-500.0,0.00044109,120]
[392076922,1761137450177,-510.76082515,0.00044109,120]
[392076923,1761137450187,-504.8191455,0.00044109,120]
[392076924,1761137450195,-500.0,0.00044109,120]
[392076925,1761137450204,-500.0,0.00044109,60]
[392076926,1761137450213,-500.0,0.00044109,120]
[392076927,1761137450223,-500.0,0.00044109,120]
[392076928,1761137450232,-500.0,0.00044109,120]
[392076929,1761137450242,-500.0,0.00044109,120]
[392076930,1761137450251,-500.0,0.00044109,120]
[392076931,1761137450260,-500.0,0.00044109,120]
[392076932,1761137450269,-500.0,0.00044109,120]
[392076933,1761137450279,-500.0,0.00044109,120]
[392076934,1761137450287,-500.0,0.00044109,120]
[392076935,1761137450296,-500.0,0.00044109,120]
[392076936,1761137450306,-500.0,0.00044109,120]
[392076937,1761137450315,-500.0,0.00044109,120]
[392076938,1761137450324,-500.0,0.00044109,120]
[392076939,1761137450333,-500.0,0.00044109,120]
[392076940,1761137450342,-500.0,0.00044109,120]
[392076941,1761137450352,-500.0,0.00044109,120]
[392076942,1761137450361,-500.0,0.00044109,120]
[392076943,1761137450371,-500.0,0.00044109,120]
[392076944,1761137450381,-500.0,0.00044109,120]
[392076945,1761137450390,-913.64,0.00044109,2]
[392076946,1761137450401,-500.0,0.00044109,120]
[392076947,1761137450412,-500.0,0.00044109,120]
[392076948,1761137450421,-500.0,0.00044109,120]
[392076949,1761137450431,-500.0,0.00044109,2]
[392076950,1761137450441,-788.16,0.00044109,120]
[392076951,1761137450450,-500.0,0.00044109,120]
[392076952,1761137450460,-500.0,0.00044109,120]
[392076953,1761137450470,-572.84186523,0.00044109,120]
[392076954,1761137450479,-572.17,0.00044109,120]
[392076955,1761137450489,-500.0,0.00044109,120]
[392076956,1761137450499,-208.59356266,0.00044109,120]
[392076957,1761137450509,-290.41198778,0.00044109,120]
[392076958,1761137450518,-500.0,0.00044109,120]
[392076959,1761137450528,-500.0,0.00044109,120]
[392076960,1761137450537,-500.0,0.00044109,120]
[392076961,1761137450547,-500.0,0.00044109,120]
[392076962,1761137450556,-164.55900679,0.00044109,120]
[392076963,1761137450566,-545.11661452,0.00044109,120]
[392076964,1761137450575,-500.0,0.00044109,120]
[392076965,1761137450585,-500.0,0.00044109,120]
[392076966,1761137450595,-500.0,0.00044109,120]
[392076967,1761137450605,-278.3484676,0.00044109,120]
[392076968,1761137450614,-500.0,0.00044109,120]
[392076969,1761137450624,-1172.27,0.00044109,120]
[392076970,1761137450633,-500.0,0.00044109,120]
[392076971,1761137450643,-500.0,0.00044109,120]
[392076972,1761137450652,-500.0,0.00044109,120]
[392076973,1761137450662,-500.0,0.00044109,120]
[392076974,1761137450672,-265.96169615,0.00044109,120]
[392076975,1761137450682,-500.0,0.00044109,120]
[392076976,1761137450691,-500.0,0.00044109,120]
[392076977,1761137450701,-500.0,0.00044109,120]
[392076978,1761137450711,-822.33,0.00044109,120]
[392076979,1761137450722,-940.37,0.00044109,120]
[392076980,1761137450731,-300.0,0.00044109,2]
[392076981,1761137450742,-500.0,0.00044109,120]
[392076982,1761137450751,-500.0,0.00044109,120]
[392076983,1761137450761,-348.66665726,0.00044109,120]
[392076984,1761137450774,-500.0,0.00044109,120]
[392076985,1761137450784,-1208.24,0.00044109,120]
[392076986,1761137450794,-4000.0,0.00044109,7]
[392076987,1761137450803,-500.0,0.00044109,120]
[392076988,1761137450814,-500.0,0.00044109,120]
[392076989,1761137450824,-500.0,0.00044109,120]
[392076990,1761137450833,-647.81,0.00044109,120]
[392076991,1761137450844,-500.0,0.00044109,120]
[392076992,1761137450854,-500.0,0.00044109,120]
[392076993,1761137450864,-500.0,0.00044109,120]
[392076994,1761137450874,-903.67,0.00044109,120]
[392076995,1761137450884,-500.0,0.00044109,120]
[392076996,1761137450894,-510.04761817,0.00044109,120]
[392076997,1761137450904,-701.38,0.00044109,120]
[392076998,1761137450920,-500.0,0.00044109,120]
[392076999,1761137450929,-500.0,0.00044109,120]
[392077000,1761137450938,-500.0,0.00044109,120]
[392077001,1761137450947,-500.0,0.00044109,120]
[392077002,1761137450955,-726.04,0.00044109,120]
[392077003,1761137450963,-512.34075647,0.00044109,120]
[392077004,1761137450972,-1257.65,0.00044109,120]
[392077005,1761137450983,-516.84424709,0.00044109,120]
[392077006,1761137450994,-500.0,0.00044109,120]
[392077007,1761137451004,-1171.07,0.00044109,120]
[392077008,1761137451015,-500.0,0.00044109,120]
[392077009,1761137451026,-500.0,0.00044109,7]
[392077010,1761137451037,-966.41,0.00044109,120]
[392077011,1761137451047,-500.0,0.00044109,120]
[392077012,1761137451059,-500.0,0.00044109,120]
[392077013,1761137451070,-607.9391899,0.00044109,120]
[392077014,1761137451080,-500.0,0.00044109,120]
[392077015,1761137451091,-500.0,0.00044109,120]
[392077016,1761137451102,-838.16,0.00044109,120]
[392077017,1761137451114,-793.36,0.00044109,120]
[392077018,1761137451125,-650.24,0.00044109,120]
[392077019,1761137451135,-1000.0,0.00044109,120]
[392077020,1761137451145,-500.0,0.00044109,120]
[392077021,1761137451156,-500.0,0.00044109,120]
[392077022,1761137451166,-739.64,0.00044109,120]
[392077023,1761137451177,-1537.31,0.00044109,120]
[392077024,1761137451188,-300.0,0.00044109,2]
[392077025,1761137451199,-211.02844607,0.00044109,120]
[392077026,1761137451210,-500.0,0.00044109,120]
[392077027,1761137451220,-500.0,0.00044109,120]
[392077028,1761137451231,-500.0,0.00044109,120]
[392077029,1761137451242,-1957.66,0.00044109,120]
[392077030,1761137451253,-500.0,0.00044109,120]
[392077031,1761137451263,-500.0,0.00044109,120]
[392077032,1761137451273,-500.0,0.00044109,16]
[392077033,1761137451284,-728.44,0.00044109,120]
[392077034,1761137451295,-500.0,0.00044109,120]
[392077035,1761137451305,-1020.65,0.00044109,120]
[392077036,1761137451315,-500.0,0.00044109,120]
[392077037,1761137451325,-500.0,0.00044109,120]
[392077038,1761137451339,-500.0,0.00044109,120]
[392077039,1761137451349,-500.0,0.00044109,120]
[392077040,1761137451359,-500.0,0.00044109,120]
[392077041,1761137451368,-500.0,0.00044109,120]
[392077042,1761137451378,-219.77661323,0.00044109,120]
[392077043,1761137451388,-500.0,0.00044109,120]
[392077044,1761137451398,-500.0,0.00044109,120]
[392077045,1761137451408,-500.0,0.00044109,120]
[392077046,1761137451418,-500.0,0.00044109,120]
[392077047,1761137451429,-500.0,0.00044109,120]
[392077048,1761137451440,-500.0,0.00044109,120]
[392077049,1761137451451,-500.0,0.00044109,120]
[392077050,1761137451461,-500.0,0.00044109,120]
[392077051,1761137451471,-500.0,0.00044109,120]
[392077052,1761137451482,-500.0,0.00044109,120]
[392077053,1761137451491,-1283.72,0.00044109,120]
[392077054,1761137451501,-500.0,0.00044109,120]
[392077055,1761137451510,-507.24,0.00044109,120]
[392077056,1761137451520,-500.0,0.00044109,120]
[392077057,1761137451530,-500.0,0.00044109,120]
[392077058,1761137451543,-500.0,0.00044109,120]
[392077059,1761137451553,-500.0,0.00044109,120]
[392077060,1761137451563,-1791.81,0.00044109,120]
[392077061,1761137451572,-500.0,0.00044109,2]
[392077062,1761137451582,-516.69,0.00044109,120]
[392077063,1761137451592,-500.0,0.00044109,120]
[392077064,1761137451602,-500.0,0.00044109,120]
[392077065,1761137451612,-500.0,0.00044109,120]
[392077066,1761137451621,-500.0,0.00044109,3]
[392077067,1761137451631,-1704.96,0.00044109,120]
[392077068,1761137451641,-774.46,0.00044109,120]
[392077069,1761137451651,-684.88,0.00044109,120]
[392077070,1761137451661,-903.57,0.00044109,120]
[392077071,1761137451677,-500.0,0.00044109,120]
[392077072,1761137451696,-500.0,0.00044109,120]
[392077073,1761137451707,-500.0,0.00044109,120]
[392077074,1761137451717,-500.0,0.00044109,120]
[392077075,1761137451727,-500.0,0.00044109,120]
[392077076,1761137451736,-500.0,0.00044109,120]
[392077077,1761137451746,-500.0,0.00044109,120]
[392077078,1761137451757,-500.08,0.00044109,120]
[392077079,1761137451770,-500.0,0.00044109,120]
[392077080,1761137451781,-976.02,0.00044109,120]
[392077081,1761137451791,-1123.28,0.00044109,120]
[392077082,1761137451801,-791.42,0.00044109,120]
[392077083,1761137451811,-500.0,0.00044109,120]
[392077084,1761137451821,-1380.66,0.00044109,120]
[392077085,1761137451831,-500.0,0.00044109,120]
[392077086,1761137451841,-500.0,0.00044109,120]
[392077087,1761137451852,-777.97,0.00044109,120]
[392077088,1761137451862,-500.0,0.00044109,120]
[392077089,1761137451872,-1069.18,0.00044109,120]
[392077090,1761137451882,-550.13,0.00044109,120]
[392077091,1761137451892,-500.0,0.00044109,120]
[392077092,1761137451901,-500.0,0.00044109,120]
[392077093,1761137451911,-500.0,0.00044109,120]
[392077094,1761137451921,-500.0,0.00044109,120]
[392077095,1761137451930,-500.0,0.00044109,120]
[392077096,1761137451940,-500.0,0.00044109,120]
[392077097,1761137451950,-500.0,0.00044109,120]
[392077098,1761137451965,-657.62,0.00044109,120]
[392077099,1761137451979,-500.0,0.00044109,120]
[392077100,1761137451990,-741.11,0.00044109,120]
[392077101,1761137452000,-546.69,0.00044109,120]
[392077102,1761137452010,-500.0,0.00044109,120]
[392077103,1761137452022,-624.19061579,0.00044109,120]
[392077104,1761137452033,-868.99,0.00044109,120]
[392077105,1761137452045,-500.0,0.00044109,120]
[392077106,1761137452055,-500.0,0.00044109,120]
[392077107,1761137452067,-500.0,0.00044109,120]
[392077108,1761137452077,-749.46,0.00044109,120]
[392077109,1761137452087,-500.0,0.00044109,120]
[392077110,1761137452097,-500.0,0.00044109,120]
[392077111,1761137452107,-515.79731271,0.00044109,120]
[392077112,1761137452117,-500.0,0.00044109,120]
[392077113,1761137452126,-1632.62,0.00044109,120]
[392077114,1761137452136,-1268.92,0.00044109,120]
[392077115,1761137452145,-500.0,0.00044109,120]
[392077116,1761137452155,-1515.76,0.00044109,120]
[392077117,1761137452164,-500.0,0.00044109,120]
[392077118,1761137452174,-500.0,0.00044109,120]
[392077119,1761137452183,-229.30322327,0.00044109,2]
[392077120,1761137452193,-500.0,0.00044109,120]
[392077121,1761137452202,-500.0,0.00044109,120]
[392077122,1761137452212,-500.0,0.00044109,120]
[392077123,1761137452222,-500.0,0.00044109,120]
[392077124,1761137452231,-1021.54,0.00044109,120]
[392077125,1761137452241,-500.0,0.00044109,120]
[392077126,1761137452251,-500.0,0.00044109,120]
[392077127,1761137452262,-500.0,0.00044109,120]
[392077128,1761137452272,-502.25200251,0.00044109,2]
[392077129,1761137452282,-500.0,0.00044109,120]
[392077130,1761137452292,-500.0,0.00044109,120]
[392077131,1761137452489,-822.83,0.00044109,120]
[392077132,1761137452500,-688.01253649,0.00044134,15]
[392077133,1761137452510,-801.2512199,0.0004415,2]
[392077134,1761137452520,-1399.96721182,0.00044164,120]
[392077135,1761137452529,-500.0,0.00044173,8]
[392077136,1761137452539,-175.96028634,0.00044283,120]
[392077137,1761137452548,-374.68584808,0.00044283,15]
[392077138,1761137452557,-417.78101719,0.00044353,28]
[392077139,1761137452567,-9512.20393394,0.00044363,3]
[392077140,1761137452577,-500.0,0.00044372,120]
[392077141,1761137452587,-150.0,0.00044373,10]
[392077142,1761137452597,-95122.0393394,0.00044373,3]
[392077143,1761137452608,-500.0,0.00044382,120]
[392077144,1761137452618,-683.25,0.00044383,120]
[392077145,1761137452628,-668.65,0.00044383,60]
[392077146,1761137452639,-500.0,0.00044383,120]
[392077147,1761137452650,-500.0,0.00044383,120]
[392077148,1761137452660,-500.0,0.00044383,120]
[392077149,1761137452669,-500.0,0.00044383,120]
[392077150,1761137452679,-500.0,0.00044383,120]
[392077151,1761137452689,-513.15713865,0.00044383,120]
[392077152,1761137452697,-500.0,0.00044383,120]
[392077153,1761137452706,-500.0,0.00044383,120]
[392077154,1761137452715,-500.0,0.00044383,120]
[392077155,1761137452725,-504.28,0.00044383,120]
[392077156,1761137452734,-500.0,0.00044383,120]
[392077157,1761137452744,-488.16953233,0.00044383,120]
[392077158,1761137452753,-500.0,0.00044383,120]
[392077159,1761137452761,-500.0,0.00044383,120]
[392077160,1761137452772,-500.0,0.00044383,120]
[392077161,1761137452782,-500.0,0.00044383,120]
[392077162,1761137452791,-500.0,0.00044383,120]
[392077163,1761137452800,-500.0,0.00044383,120]
[392077164,1761137452811,-500.0,0.00044383,120]
[392077165,1761137452820,-500.0,0.00044383,30]
[392077166,1761137452829,-500.0,0.00044383,120]
[392077167,1761137452838,-678.16,0.00044383,120]
[392077168,1761137452849,-500.0,0.00044383,120]
[392077169,1761137452858,-953.82,0.00044383,120]
[392077170,1761137452866,-402.78036544,0.00044383,120]
[392077171,1761137452876,-403.84693478,0.00044383,120]
[392077172,1761137452885,-578.39970216,0.00044383,120]
[392077173,1761137452895,-1131.8,0.00044383,120]
[392077174,1761137452904,-538.28,0.00044383,120]
[392077175,1761137452913,-500.0,0.00044383,120]
[392077176,1761137452922,-1212.18,0.00044383,120]
[392077177,1761137452932,-500.0,0.00044383,120]
[392077178,1761137452944,-500.0,0.00044383,120]
[392077179,1761137452953,-500.0,0.00044383,120]
[392077180,1761137452962,-500.0,0.00044383,120]
[392077181,1761137452971,-500.0,0.00044383,120]
[392077182,1761137452982,-500.0,0.00044383,120]
[392077183,1761137452991,-971.57,0.00044383,120]
[392077184,1761137453000,-500.0,0.00044383,120]
[392077185,1761137453010,-500.0,0.00044383,120]
[392077186,1761137453019,-500.0,0.00044383,120]
[392077187,1761137453029,-500.0,0.00044383,120]
[392077188,1761137453039,-500.0,0.00044383,2]
[392077189,1761137453048,-500.0,0.00044383,120]
[392077190,1761137453058,-500.0,0.00044383,2]
[392077191,1761137453067,-500.0,0.00044383,120]
[392077192,1761137453077,-500.0,0.00044383,120]
[392077193,1761137453086,-500.0,0.00044383,90]
[392077194,1761137453096,-506.07,0.00044383,120]
[392077195,1761137453105,-500.0,0.00044383,120]
[392077196,1761137453115,-500.0,0.00044383,120]
[392077197,1761137453125,-521.62019111,0.00044383,120]
[392077198,1761137453134,-500.0,0.00044383,120]
[392077199,1761137453144,-500.0,0.00044383,120]
[392077200,1761137453153,-787.36,0.00044383,120]
[392077201,1761137453162,-654.91,0.00044383,120]
[392077202,1761137453172,-598.08236929,0.00044383,120]
[392077203,1761137453182,-609.54,0.00044383,120]
[392077204,1761137453193,-1546.84,0.00044383,120]
[392077205,1761137453203,-512.22,0.00044383,120]
[392077206,1761137453212,-500.0,0.00044383,120]
[392077207,1761137453221,-500.0,0.00044383,120]
[392077208,1761137453231,-500.0,0.00044383,120]
[392077209,1761137453240,-500.0,0.00044383,120]
[392077210,1761137453249,-584.83,0.00044383,120]
[392077211,1761137453258,-469.50458549,0.00044383,120]
[392077212,1761137453268,-506.35430145,0.00044383,120]
[392077213,1761137453277,-300.0,0.00044383,120]
[392077214,1761137453287,-500.0,0.00044383,120]
[392077215,1761137453297,-500.0,0.00044383,120]
[392077216,1761137453307,-500.0,0.00044383,12]
[392077217,1761137453317,-500.0,0.00044383,120]
[392077218,1761137453326,-500.0,0.00044383,120]
[392077219,1761137453335,-500.0,0.00044383,120]
[392077220,1761137453345,-500.0,0.00044383,120]
[392077221,1761137453354,-500.0,0.00044383,120]
[392077222,1761137453364,-500.0,0.00044383,120]
[392077223,1761137453374,-500.0,0.00044383,120]
[392077224,1761137453384,-500.0,0.00044383,120]
[392077225,1761137453393,-537.03,0.00044383,120]
[392077226,1761137453403,-500.0,0.00044383,120]
[392077227,1761137453413,-1006.19,0.00044383,120]
[392077228,1761137453422,-500.0,0.00044383,120]
[392077229,1761137453431,-500.0,0.00044383,120]
[392077230,1761137453442,-500.0,0.00044383,120]
[392077231,1761137453452,-768.78,0.00044383,120]
[392077232,1761137453462,-314.06250199,0.00044383,120]
[392077233,1761137453472,-500.0,0.00044383,120]
[392077234,1761137453482,-515.05,0.00044383,120]
[392077235,1761137453492,-888.55,0.00044383,120]
[392077236,1761137453501,-1783.82,0.00044383,120]
[392077237,1761137453510,-500.0,0.00044383,120]
[392077238,1761137453520,-1004.91,0.00044383,120]
[392077239,1761137453530,-482.78945726,0.00044383,120]
[392077240,1761137453539,-902.56,0.00044383,120]
[392077241,1761137453549,-500.0,0.00044383,120]
[392077242,1761137453558,-500.0,0.00044383,120]
[392077243,1761137453568,-797.64,0.00044383,120]
[392077244,1761137453578,-727.22,0.00044383,120]
[392077245,1761137453588,-500.0,0.00044383,120]
[392077246,1761137453598,-500.0,0.00044383,120]
[392077247,1761137453607,-500.0,0.00044383,120]
[392077248,1761137453617,-596.43,0.00044383,30]
[392077249,1761137453627,-171.53342623,0.00044383,120]
[392077250,1761137453636,-500.0,0.00044383,120]
[392077251,1761137453645,-839.78,0.00044383,120]
[392077252,1761137453655,-1567.44,0.00044383,120]
[392077253,1761137453664,-978.8,0.00044383,120]
[392077254,1761137453675,-550.93,0.00044383,120]
[392077255,1761137453684,-500.0,0.00044383,120]
[392077256,1761137453693,-500.0,0.00044383,120]
[392077257,1761137453703,-500.0,0.00044383,120]
[392077258,1761137453713,-1200.44,0.00044383,120]
[392077259,1761137453722,-804.93,0.00044383,120]
[392077260,1761137453732,-739.04,0.00044383,120]
[392077261,1761137453741,-500.0,0.00044383,120]
[392077262,1761137453751,-500.0,0.00044383,120]
[392077263,1761137453760,-771.06,0.00044383,120]
[392077264,1761137453772,-794.03,0.00044383,120]
[392077265,1761137453781,-1137.8,0.00044383,120]
[392077266,1761137453790,-500.0,0.00044383,120]
[392077267,1761137453800,-238.10308361,0.00044383,120]
[392077268,1761137453811,-500.0,0.00044383,120]
[392077269,1761137453820,-500.0,0.00044383,120]
[392077270,1761137453829,-500.0,0.00044383,120]
[392077271,1761137453839,-500.0,0.00044383,120]
[392077272,1761137453849,-365.34566079,0.00044383,2]
[392077273,1761137453858,-935.82,0.00044383,120]
[392077274,1761137453867,-500.0,0.00044383,120]
[392077275,1761137453876,-835.83,0.00044383,120]
[392077276,1761137453886,-1199.67,0.00044383,120]
[392077277,1761137453895,-696.26,0.00044383,120]
[392077278,1761137453905,-652.36,0.00044383,120]
[392077279,1761137453914,-500.0,0.00044383,120]
[392077280,1761137453923,-1077.51,0.00044383,120]
[392077281,1761137453932,-1098.31,0.00044383,120]
[392077282,1761137453942,-199.2297361,0.00044383,60]
[392077283,1761137453953,-500.0,0.00044383,120]
[392077284,1761137453962,-866.75,0.00044383,120]
[392077285,1761137453971,-500.0,0.00044383,120]
[392077286,1761137453981,-311.88690528,0.00044383,120]
[392077287,1761137453991,-500.0,0.00044383,120]
[392077288,1761137454000,-500.0,0.00044383,120]
[392077289,1761137454010,-899.21,0.00044383,120]
[392077290,1761137454020,-683.69,0.00044383,120]
[392077291,1761137454029,-901.18,0.00044383,120]
[392077292,1761137454038,-500.0,0.00044383,120]
[392077293,1761137454047,-1139.36,0.00044383,120]
[392077294,1761137454057,-500.0,0.00044383,120]
[392077295,1761137454066,-978.62,0.00044383,120]
[392077296,1761137454076,-500.0,0.00044383,120]
[392077297,1761137454085,-500.0,0.00044383,120]
[392077298,1761137454095,-503.85,0.00044383,120]
[392077299,1761137454104,-183.91648037,0.00044383,120]
[392077300,1761137454114,-500.0,0.00044383,120]
[392077301,1761137454123,-1709.15,0.00044383,120]
[392077302,1761137454132,-500.0,0.00044383,120]
[392077303,1761137454142,-1255.83,0.00044383,120]
[392077304,1761137454151,-500.0,0.00044383,120]
[392077305,1761137454160,-545.64283092,0.00044383,120]
[392077306,1761137454170,-598.97,0.00044383,120]
[392077307,1761137454180,-513.36340645,0.00044383,120]
[392077308,1761137454190,-500.0,0.00044383,120]
[392077309,1761137454200,-500.0,0.00044383,60]
[392077310,1761137454210,-508.71205034,0.00044383,120]
[392077311,1761137454220,-500.0,0.00044383,120]
[392077312,1761137454230,-500.0,0.00044383,120]
[392077313,1761137454240,-500.0,0.00044383,120]
[392077314,1761137454250,-500.0,0.00044383,120]
[392077315,1761137454260,-500.0,0.00044383,120]
[392077316,1761137454271,-500.0,0.00044383,120]
[392077317,1761137454281,-500.0,0.00044383,120]
[392077318,1761137454291,-500.0,0.00044383,120]
[392077319,1761137454301,-500.0,0.00044383,120]
[392077320,1761137454311,-500.0,0.00044383,120]
[392077321,1761137454321,-500.0,0.00044383,120]
[392077322,1761137454331,-238.29273277,0.00044383,120]
[392077323,1761137454341,-500.0,0.00044383,120]
[392077324,1761137454350,-622.16358621,0.00044383,120]
[392077325,1761137454360,-500.0,0.00044383,120]
[392077326,1761137454370,-500.0,0.00044383,120]
[392077327,1761137454380,-500.0,0.00044383,120]
[392077328,1761137454390,-500.0,0.00044383,120]
[392077329,1761137454400,-913.64,0.00044383,2]
[392077330,1761137454410,-500.0,0.00044383,120]
[392077331,1761137454420,-500.0,0.00044383,120]
[392077332,1761137454430,-500.0,0.00044383,120]
[392077333,1761137454440,-500.0,0.00044383,2]
[392077334,1761137454450,-788.16,0.00044383,120]
[392077335,1761137454460,-584.11320691,0.00044383,120]
[392077336,1761137454470,-500.0,0.00044383,120]
[392077337,1761137454480,-572.17,0.00044383,120]
[392077338,1761137454489,-500.0,0.00044383,120]
[392077339,1761137454499,-500.0,0.00044383,120]
[392077340,1761137454509,-500.0,0.00044383,120]
[392077341,1761137454518,-500.0,0.00044383,120]
[392077342,1761137454529,-500.0,0.00044383,120]
[392077343,1761137454539,-500.0,0.00044383,120]
[392077344,1761137454549,-500.0,0.00044383,120]
[392077345,1761137454558,-500.0,0.00044383,120]
[392077346,1761137454568,-500.0,0.00044383,120]
[392077347,1761137454578,-1172.27,0.00044383,120]
[392077348,1761137454589,-500.0,0.00044383,120]
[392077349,1761137454598,-500.0,0.00044383,120]
[392077350,1761137454608,-500.0,0.00044383,120]
[392077351,1761137454617,-500.0,0.00044383,120]
[392077352,1761137454627,-513.76399675,0.00044383,120]
[392077353,1761137454636,-500.0,0.00044383,120]
[392077354,1761137454646,-500.0,0.00044383,120]
[392077355,1761137454655,-822.33,0.00044383,120]
[392077356,1761137454665,-300.0,0.00044383,2]
[392077357,1761137454675,-940.37,0.00044383,120]
[392077358,1761137454686,-509.04953417,0.00044383,120]
[392077359,1761137454696,-500.0,0.00044383,120]
[392077360,1761137454705,-500.0,0.00044383,120]
[392077361,1761137454715,-1208.24,0.00044383,120]
[392077362,1761137454725,-508.44661692,0.00044383,120]
[392077363,1761137454734,-361.73430906,0.00044383,120]
[392077364,1761137454743,-647.81,0.00044383,120]
[392077365,1761137454753,-500.0,0.00044383,120]
[392077366,1761137454763,-500.0,0.00044383,120]
[392077367,1761137454776,-500.0,0.00044383,120]
[392077368,1761137454786,-903.67,0.00044383,120]
[392077369,1761137454795,-500.0,0.00044383,120]
[392077370,1761137454805,-701.38,0.00044383,120]
[392077371,1761137454815,-500.0,0.00044383,120]
[392077372,1761137454824,-500.0,0.00044383,120]
[392077373,1761137454834,-508.15381669,0.00044383,120]
[392077374,1761137454844,-500.0,0.00044383,120]
[392077375,1761137454854,-726.04,0.00044383,120]
[392077376,1761137454863,-1257.65,0.00044383,120]
[392077377,1761137454873,-500.0,0.00044383,120]
[392077378,1761137454883,-1171.07,0.00044383,120]
[392077379,1761137454893,-500.0,0.00044383,120]
[392077380,1761137454902,-500.0,0.00044383,7]
[392077381,1761137454912,-966.41,0.00044383,120]
[392077382,1761137454921,-500.0,0.00044383,120]
[392077383,1761137454931,-500.0,0.00044383,120]
[392077384,1761137454941,-500.0,0.00044383,120]
[392077385,1761137454950,-838.16,0.00044383,120]
[392077386,1761137454961,-793.36,0.00044383,120]
[392077387,1761137454971,-650.24,0.00044383,120]
[392077388,1761137454982,-1000.0,0.00044383,120]
[392077389,1761137454991,-500.0,0.00044383,120]
[392077390,1761137455000,-500.0,0.00044383,120]
[392077391,1761137455009,-739.64,0.00044383,120]
[392077392,1761137455018,-1537.31,0.00044383,120]
[392077393,1761137455028,-300.0,0.00044383,2]
[392077394,1761137455038,-500.0,0.00044383,120]
[392077395,1761137455051,-500.0,0.00044383,120]
[392077396,1761137455062,-500.0,0.00044383,120]
[392077397,1761137455072,-1957.66,0.00044383,120]
[392077398,1761137455082,-500.0,0.00044383,120]
[392077399,1761137455092,-500.0,0.00044383,120]
[392077400,1761137455102,-500.0,0.00044383,16]
[392077401,1761137455112,-728.44,0.00044383,120]
[392077402,1761137455122,-500.0,0.00044383,120]
[392077403,1761137455131,-1020.65,0.00044383,120]
[392077404,1761137455141,-500.0,0.00044383,120]
[392077405,1761137455150,-500.0,0.00044383,120]
[392077406,1761137455160,-500.0,0.00044383,120]
[392077407,1761137455169,-500.0,0.00044383,120]
[392077408,1761137455179,-500.0,0.00044383,120]
[392077409,1761137455188,-500.0,0.00044383,120]
[392077410,1761137455199,-308.67360204,0.00044383,120]
[392077411,1761137455208,-500.0,0.00044383,120]
[392077412,1761137455218,-500.0,0.00044383,120]
[392077413,1761137455228,-500.0,0.00044383,120]
[392077414,1761137455237,-500.0,0.00044383,120]
[392077415,1761137455247,-500.0,0.00044383,120]
[392077416,1761137455256,-500.0,0.00044383,120]
[392077417,1761137455266,-1283.72,0.00044383,120]
[392077418,1761137455275,-500.0,0.00044383,120]
[392077419,1761137455285,-507.24,0.00044383,120]